bitfinex-derivatives/quotes_BTCF0:USTF0_20251118
["timestamp","ask_amount","ask_price","bid_price","bid_amount"]
[1763492124864,0.04554749,93511.0,93510.0,0.4222927]
[1763492125262,0.04554749,93511.0,93510.0,0.3628]
[1763492126257,0.04554749,93511.0,93510.0,0.002]
[1763492126468,0.02233749,93511.0,93510.0,0.0614927]
[1763492126657,0.04554749,93511.0,93510.0,0.0614927]
[1763492127256,7.749e-05,93511.0,93510.0,0.0614927]
[1763492128454,7.749e-05,93511.0,93510.0,0.0604927]
[1763492128758,7.749e-05,93511.0,93510.0,0.0594927]
[1763492129859,7.749e-05,93511.0,93510.0,0.4202927]
[1763492130667,0.3870187,93525.0,93524.0,0.04527]
[1763492130869,0.41167662,93525.0,93524.0,0.04527]
[1763492131068,0.43332662,93525.0,93524.0,0.04527]
[1763492133978,0.32633792,93525.0,93524.0,0.04527]
[1763492134170,0.28361792,93525.0,93524.0,0.04527]
[1763492134766,0.02465792,93525.0,93524.0,0.04527]
[1763492134965,0.25892,93533.0,93532.0,0.04527]
[1763492135267,0.32633793,93533.0,93532.0,0.04527]
[1763492135467,0.04272,93531.0,93530.0,0.0007327]
[1763492135769,0.0674198,93531.0,93530.0,0.0007327]
[1763492135972,0.0674198,93531.0,93530.0,0.0232927]
[1763492136670,0.0674198,93531.0,93530.0,0.0460027]
[1763492137064,0.1497105,93523.0,93522.0,0.40607]
[1763492137267,0.1497105,93523.0,93522.0,0.38336]
[1763492137565,0.1497105,93523.0,93522.0,0.40607]
[1763492138272,0.17442333,93523.0,93522.0,0.40607]
[1763492138459,0.17442333,93523.0,93522.0,0.04527]
[1763492140974,0.02471283,93523.0,93522.0,0.40607]
[1763492141164,0.1069771,93535.0,93534.0,0.04527]
[1763492141361,0.13173119,93535.0,93534.0,0.04527]
[1763492141773,0.17445119,93535.0,93534.0,0.04527]
[1763492141974,0.13173119,93535.0,93534.0,0.04527]
[1763492142175,0.15280119,93535.0,93534.0,0.04527]
[1763492142370,0.17545119,93535.0,93534.0,0.04527]
[1763492142879,0.17645119,93535.0,93534.0,0.04527]
[1763492143572,0.02675409,93535.0,93534.0,0.1522478]
[1763492143772,0.04782409,93535.0,93534.0,0.04527]
[1763492144172,0.06947409,93535.0,93534.0,0.04527]
[1763492144369,0.06947409,93535.0,93534.0,0.02256]
[1763492144569,0.04272,93532.0,93531.0,0.3608]
[1763492144774,0.06747409,93532.0,93531.0,0.40607]
[1763492145775,0.06847409,93532.0,93531.0,0.40607]
[1763492146174,0.06847409,93532.0,93531.0,0.04527]
[1763492146375,0.06847409,93532.0,93530.0,0.0007327]
[1763492146376,0.1497013,93531.0,93530.0,0.0007327]
[1763492146574,0.17445539,93531.0,93530.0,0.0232927]
[1763492146980,0.1497093,93524.0,93523.0,0.40607]
[1763492147373,0.1497127,93521.0,93520.0,0.0007327]
[1763492147574,0.1497173,93517.0,93510.0,0.01282]
[1763492147772,0.17400653,93517.0,93504.0,0.37388]
[1763492147975,0.17400653,93517.0,93516.0,0.16397]
[1763492148474,0.17400653,93517.0,93516.0,0.04527]
[1763492148677,0.1497241,93511.0,93510.0,0.03564]
[1763492148993,0.1497241,93511.0,93510.0,0.0590827]
[1763492149572,0.17400655,93511.0,93510.0,0.0590827]
[1763492149974,0.17400655,93511.0,93510.0,0.0007327]
[1763492150486,0.17400655,93511.0,93510.0,0.0232927]
[1763492150870,0.17400655,93511.0,93510.0,0.0460027]
[1763492152878,0.17400655,93511.0,93510.0,0.0232927]
[1763492153086,0.149731,93505.0,93504.0,0.41915]
[1763492153270,0.1497447,93493.0,93492.0,0.03579]
[1763492153474,0.1497447,93493.0,93492.0,0.05835]
[1763492154071,0.1497447,93493.0,93490.0,0.0007327]
[1763492154072,0.04272,93491.0,93490.0,0.0007327]
[1763492154284,0.1497516,93487.0,93482.0,0.3608]
[1763492154485,0.1487516,93487.0,93482.0,0.3608]
[1763492154681,1.6487516,93487.0,93474.0,0.37388]
[1763492155182,1.6477516,93487.0,93474.0,0.37388]
[1763492155376,1.6477516,93487.0,93479.0,0.04537103]
[1763492155377,0.1497596,93480.0,93479.0,0.04537103]
[1763492155579,0.15095759,93480.0,93479.0,0.00010103]
[1763492155977,0.1497728,93469.0,93468.0,0.04527]
[1763492156684,0.5105728,93469.0,93468.0,0.04527]
[1763492156878,0.02107,93457.0,93456.0,0.05835]
[1763492157285,0.04272,93457.0,93456.0,0.05835]
[1763492158087,0.04272,93457.0,93456.0,0.05935]
[1763492158588,0.04272,93457.0,93456.0,0.06035]
[1763492159388,0.149786,93457.0,93456.0,0.06035]
[1763492159778,0.04272,93457.0,93456.0,0.06035]
[1763492160091,0.149786,93457.0,93456.0,0.06035]
[1763492161587,0.04272,93457.0,93456.0,0.06035]
[1763492161793,0.00219799,93460.0,93459.0,0.04324]
[1763492162291,0.15543049,93460.0,93459.0,0.04324]
[1763492162586,0.15543049,93460.0,93456.0,0.01508]
[1763492162587,0.04617,93457.0,93456.0,0.04524]
[1763492162790,0.00219799,93460.0,93459.0,0.04324]
[1763492163383,0.15543049,93460.0,93459.0,0.04424]
[1763492163690,0.15543049,93460.0,93459.0,0.04524]
[1763492164486,0.15543049,93460.0,93459.0,0.02356]
[1763492164686,0.15543049,93460.0,93459.0,0.002]
[1763492164881,0.15543049,93460.0,93459.0,0.001]
[1763492166494,0.1532394,93454.0,93453.0,0.40404]
[1763492167280,0.25892,93458.0,93453.0,0.40404]
[1763492167485,0.25892,93458.0,93457.0,0.04324]
[1763492167685,0.3659848,93458.0,93457.0,0.04324]
[1763492168284,0.4121548,93458.0,93457.0,0.04324]
[1763492168484,0.4121548,93458.0,93457.0,0.02156]
[1763492168685,0.3659848,93458.0,93457.0,0.04324]
[1763492169091,0.25892,93458.0,93457.0,0.04324]
[1763492169488,0.28214,93458.0,93457.0,0.04324]
[1763492169689,0.30509,93458.0,93457.0,0.04324]
[1763492169984,0.1532394,93454.0,93453.0,0.38236]
[1763492170196,0.1532394,93454.0,93453.0,0.3608]
[1763492171392,0.1532394,93454.0,93453.0,0.3618]
[1763492171788,0.1532394,93454.0,93453.0,0.40504]
[1763492172394,0.04617,93454.0,93453.0,0.40504]
[1763492172794,0.04617,93454.0,93453.0,0.40604]
[1763492173092,0.25892,93458.0,93457.0,0.04324]
[1763492173397,0.1302802,93463.0,93462.0,0.04324]
[1763492173595,0.3892402,93463.0,93462.0,0.04324]
[1763492173896,0.30513,93463.0,93462.0,0.04324]
[1763492175099,0.04617,93461.0,93460.0,0.0439727]
[1763492177797,0.153236,93457.0,93456.0,0.03443]
[1763492177995,0.153236,93457.0,93456.0,0.04324]
[1763492179397,0.153236,93457.0,93456.0,0.05611]
[1763492181903,0.107066,93457.0,93456.0,0.05611]
[1763492182096,0.152596,93457.0,93456.0,0.05611]
[1763492182296,0.152596,93457.0,93456.0,0.04324]
[1763492182805,0.152596,93457.0,93456.0,0.05639]
[1763492183307,0.17692937,93457.0,93456.0,0.05639]
[1763492184005,0.17692937,93457.0,93456.0,0.04324]
[1763492184195,0.1070694,93454.0,93453.0,0.3608]
[1763492184408,0.17693277,93454.0,93453.0,0.38379]
[1763492184700,0.17693277,93454.0,93453.0,0.04471]
[1763492184905,0.1070786,93446.0,93445.0,0.40551]
[1763492185103,0.17702076,93446.0,93445.0,0.40551]
[1763492185306,0.17602076,93446.0,93445.0,0.40551]
[1763492185505,0.15030942,93446.0,93445.0,0.40551]
[1763492185706,0.17702066,93446.0,93445.0,0.40551]
[1763492186001,0.02441216,93446.0,93445.0,0.5125897]
[1763492186306,0.02441216,93446.0,93445.0,0.40551]
[1763492186514,0.06994216,93446.0,93445.0,0.40551]
[1763492186705,0.06994216,93446.0,93445.0,0.3608]
[1763492186898,0.06894216,93446.0,93445.0,0.40551]
[1763492187605,0.06994216,93446.0,93445.0,0.3608]
[1763492187795,0.06999277,93446.0,93445.0,0.3608]
[1763492187996,0.06999277,93446.0,93445.0,0.38371]
[1763492188401,0.06999277,93446.0,93440.0,0.0007327]
[1763492188402,0.1505743,93441.0,93440.0,0.0007327]
[1763492188597,0.1505743,93441.0,93430.0,0.05856]
[1763492188598,0.1505857,93431.0,93430.0,0.05856]
[1763492188900,0.1505857,93431.0,93430.0,0.0592927]
[1763492189106,0.1505857,93431.0,93430.0,0.0462127]
[1763492189302,0.04365048,93440.0,93439.0,0.04548]
[1763492189498,0.00235847,93440.0,93439.0,0.04548]
[1763492190907,0.00335847,93440.0,93439.0,0.04548]
[1763492192801,0.02550847,93440.0,93439.0,0.04548]
[1763492193106,0.04684847,93440.0,93439.0,0.04548]
[1763492193494,0.03541523,93440.0,93439.0,0.04548]
[1763492194101,0.1070849,93441.0,93440.0,0.04767803]
[1763492194300,0.1356449,93441.0,93440.0,0.04767803]
[1763492195909,0.1213649,93441.0,93440.0,0.04767803]
[1763492196409,0.1070849,93441.0,93440.0,0.04767803]
[1763492196608,0.1223649,93441.0,93440.0,0.04767803]
[1763492196806,0.1080843,93441.0,93440.0,0.04767803]
[1763492197011,0.1223643,93441.0,93440.0,0.04767803]
[1763492197197,0.1366443,93441.0,93440.0,0.04767803]
[1763492198907,0.16097127,93441.0,93440.0,0.04767803]
[1763492202110,0.16097127,93441.0,93440.0,0.00219803]
[1763492202511,0.16097127,93441.0,93440.0,0.06134803]
[1763492203013,0.41989127,93441.0,93440.0,0.06134803]
[1763492203515,0.05314,93432.0,93431.0,0.00016048]
[1763492203812,0.1505961,93422.0,93409.0,0.3608]
[1763492204019,0.17492307,93422.0,93421.0,0.04556466]
[1763492204214,0.43384307,93422.0,93421.0,0.04556466]
[1763492204720,0.32673697,93422.0,93421.0,0.04556466]
[1763492204904,0.06781697,93422.0,93421.0,0.04556466]
[1763492205108,0.02215,93428.0,93427.0,0.04548]
[1763492205313,0.04349,93428.0,93427.0,0.04548]
[1763492205514,0.06790325,93428.0,93427.0,0.04548]
[1763492207911,0.06790325,93428.0,93427.0,0.02291]
[1763492208421,0.04349,93426.0,93425.0,0.3608]
[1763492208719,0.1505961,93422.0,93421.0,0.40636466]
[1763492209120,0.1505961,93422.0,93421.0,0.04556466]
[1763492209812,0.1070992,93428.0,93421.0,0.10719086]
[1763492210010,0.04656368,93427.0,93426.0,0.04548]
[1763492210207,0.02215,93427.0,93426.0,0.04548]
[1763492210416,0.1292503,93427.0,93426.0,0.04548]
[1763492211114,0.1505903,93427.0,93426.0,0.04548]
[1763492213322,0.00219803,93430.0,93429.0,0.05573]
[1763492213515,0.02663566,93430.0,93429.0,0.05573]
[1763492213715,0.13373256,93430.0,93429.0,0.05573]
[1763492214312,0.00219803,93430.0,93429.0,0.05573]
[1763492216615,0.04568803,93430.0,93429.0,0.04548]
[1763492216923,0.04568803,93430.0,93429.0,0.05915]
[1763492218325,0.04568803,93430.0,93429.0,0.04548]
[1763492219125,0.04568803,93430.0,93429.0,0.05902]
[1763492220513,0.1527715,93426.0,93425.0,0.40545]
[1763492221523,0.1527715,93426.0,93425.0,0.3608]
[1763492221729,0.1527715,93426.0,93425.0,0.40545]
[1763492222127,0.1527715,93426.0,93425.0,0.38294]
[1763492222914,0.1527715,93426.0,93425.0,0.02214]
[1763492223117,0.02244,93426.0,93425.0,0.04465]
[1763492223429,0.00219803,93430.0,93429.0,0.04465]
[1763492223928,0.04786803,93430.0,93429.0,0.04465]
[1763492224323,0.1527715,93426.0,93425.0,0.3608]
[1763492224827,0.1527715,93426.0,93425.0,0.38294]
[1763492225625,0.1527761,93422.0,93420.0,0.00073266]
[1763492227127,0.1527761,93422.0,93421.0,0.00108466]
[1763492227330,0.1527761,93422.0,93421.0,0.02322466]
[1763492227722,0.1527761,93422.0,93421.0,0.04673466]
[1763492230024,0.1527761,93422.0,93421.0,0.02422466]
[1763492230228,0.1527761,93422.0,93421.0,0.00208466]
[1763492230629,0.1772635,93422.0,93421.0,0.00208466]
[1763492231734,0.1772635,93422.0,93421.0,8.466e-05]
[1763492231934,0.1772635,93422.0,93421.0,0.00208466]
[1763492232231,0.1772635,93422.0,93421.0,0.04673466]
[1763492232934,0.1772635,93422.0,93421.0,0.00108466]
[1763492233730,0.1527933,93407.0,93406.0,0.04491765]
[1763492234737,0.15290481,93407.0,93406.0,0.04491765]
[1763492235230,0.15290481,93407.0,93406.0,0.04691765]
[1763492237025,0.15290481,93407.0,93406.0,0.00226765]
[1763492237226,0.51370481,93407.0,93406.0,0.00226765]
[1763492237630,0.53882324,93407.0,93406.0,0.00226765]
[1763492238025,0.79770324,93407.0,93406.0,0.00226765]
[1763492238634,0.79770324,93407.0,93406.0,0.00126765]
[1763492239044,0.79770324,93407.0,93390.0,0.3608]
[1763492239045,0.1528116,93391.0,93390.0,0.40545]
[1763492239229,0.1528116,93391.0,93390.0,0.40618266]
[1763492239631,0.04567,93391.0,93390.0,0.40618266]
[1763492240133,0.02244,93391.0,93390.0,0.40618266]
[1763492240324,0.02244,93391.0,93390.0,0.40718266]
[1763492240528,0.04567,93391.0,93390.0,0.40718266]
[1763492241126,0.1528116,93391.0,93390.0,0.04638266]
[1763492241327,0.1528116,93391.0,93390.0,0.40818266]
[1763492241634,0.1528116,93391.0,93390.0,0.3628]
[1763492241833,0.1528116,93391.0,93390.0,0.36353266]
[1763492242036,0.1528116,93391.0,93390.0,0.36153266]
[1763492242231,0.1528116,93391.0,93390.0,0.40386266]
[1763492242626,0.1071413,93392.0,93391.0,0.04233]
[1763492243130,0.1292313,93392.0,93391.0,0.04233]
[1763492243332,0.1521113,93392.0,93391.0,0.04233]
[1763492243538,0.1653513,93392.0,93391.0,0.04233]
[1763492243727,0.1521113,93392.0,93391.0,0.04233]
[1763492244530,0.04497,93391.0,93390.0,0.00073266]
[1763492244734,0.04497,93391.0,93386.0,0.38188]
[1763492244735,0.1521162,93387.0,93386.0,0.38188]
[1763492246340,0.1521162,93387.0,93386.0,0.04233]
[1763492247728,0.1516865,93378.0,93377.0,0.40482]
[1763492249141,0.02151,93378.0,93377.0,0.40482]
[1763492249345,0.00219803,93380.0,93379.0,0.04402]
[1763492249728,0.40542977,93391.0,93390.0,0.04402]
[1763492249929,0.74847137,93391.0,93390.0,0.04475266]
[1763492250429,0.77149137,93391.0,93390.0,0.04475266]
[1763492250745,0.77149137,93391.0,93390.0,0.00073266]
[1763492251133,0.1071566,93378.0,93377.0,0.40482]
[1763492251534,0.1286666,93378.0,93377.0,0.40482]
[1763492251728,0.1516866,93378.0,93377.0,0.40482]
[1763492252835,0.1071566,93378.0,93377.0,0.40482]
[1763492253141,0.1516866,93378.0,93377.0,0.40482]
[1763492254236,0.1516866,93378.0,93377.0,0.38377]
[1763492254636,0.1516866,93378.0,93377.0,0.40482]
[1763492255440,0.1516866,93378.0,93377.0,0.3608]
[1763492256544,0.1516866,93378.0,93377.0,0.40482]
[1763492258841,0.1516866,93378.0,93377.0,0.3608]
[1763492259054,0.1516958,93370.0,93369.0,0.38377]
[1763492259249,0.15402646,93370.0,93369.0,0.38377]
[1763492259748,0.15402646,93370.0,93369.0,0.04402]
[1763492263847,0.02384066,93370.0,93369.0,0.04402]
[1763492264034,0.04686066,93370.0,93369.0,0.04402]
[1763492266050,0.02384066,93370.0,93369.0,0.04402]
[1763492266556,0.10949636,93370.0,93369.0,0.1511869]
[1763492266745,0.10949636,93370.0,93369.0,0.04402]
[1763492267651,0.00233066,93370.0,93369.0,0.04402]
[1763492270454,0.04686066,93370.0,93369.0,0.04402]
[1763492271148,0.04453,93368.0,93367.0,0.38377]
[1763492271348,0.04453,93368.0,93367.0,0.40482]
[1763492271547,0.06962702,93368.0,93367.0,0.40482]
[1763492275657,0.00233066,93370.0,93369.0,0.04402]
[1763492275955,0.02523362,93370.0,93369.0,0.04402]
[1763492276150,0.10729833,93370.0,93369.0,0.04402]
[1763492278544,0.10949636,93370.0,93369.0,0.04402]
[1763492278752,0.15344636,93370.0,93369.0,0.04402]
[1763492282858,0.13100636,93370.0,93369.0,0.04402]
[1763492283156,0.15344636,93370.0,93369.0,0.04402]
[1763492287152,0.15344636,93370.0,93369.0,0.1511869]
[1763492287355,0.00013263,93370.0,93369.0,0.1511869]
[1763492287554,5.8e-07,93379.0,93378.0,0.1506365]
[1763492287755,0.05747916,93401.0,93387.0,0.05039]
[1763492287756,0.1071451,93388.0,93387.0,0.05039]
[1763492287958,0.17803252,93388.0,93387.0,0.41119]
[1763492288162,0.17803252,93388.0,93387.0,0.38245]
[1763492288750,0.17803252,93388.0,93387.0,0.04348]
[1763492288953,0.1071531,93381.0,93380.0,0.3608]
[1763492289155,0.1529131,93381.0,93380.0,0.40501266]
[1763492291259,0.1667482,93394.0,93393.0,0.04348]
[1763492291465,0.17800239,93394.0,93393.0,0.04348]
[1763492292660,0.17800239,93394.0,93392.0,0.11992]
[1763492292661,0.107137,93396.0,93395.0,0.04348]
[1763492292860,0.107137,93396.0,93395.0,0.150617]
[1763492293656,0.00219803,93400.0,93396.0,0.04348]
[1763492294061,0.1304628,93390.0,93389.0,1.00209]
[1763492294259,0.1071519,93382.0,93378.0,0.00016058]
[1763492294462,0.04576,93380.0,93378.0,0.00016058]
[1763492294662,0.07309027,93380.0,93378.0,0.00016058]
[1763492294965,0.07309027,93380.0,93379.0,0.14035]
[1763492295264,0.04795803,93380.0,93379.0,0.16218]
[1763492295559,0.02551803,93380.0,93379.0,0.16218]
[1763492295759,0.04576,93391.0,93390.0,0.04348]
[1763492295964,0.07087008,93391.0,93390.0,0.04421266]
[1763492296660,0.07087008,93391.0,93390.0,0.00073266]
[1763492296866,0.04576,93380.0,93379.0,0.16218]
[1763492297066,0.15511223,93380.0,93379.0,0.16218]
[1763492297959,0.15511223,93380.0,93379.0,0.04348]
[1763492299562,0.15511223,93380.0,93379.0,0.02165]
[1763492300068,0.15511223,93380.0,93379.0,0.04348]
[1763492300770,0.04565,93379.0,93378.0,0.00016058]
[1763492301565,0.1528213,93367.0,93366.0,0.00026776]
[1763492303866,0.1528213,93367.0,93366.0,0.00126776]
[1763492304060,0.1528213,93367.0,93366.0,0.00226776]
[1763492306870,0.1528259,93363.0,93362.0,1e-08]
[1763492307168,0.04565,93341.0,93340.0,0.40499]
[1763492307369,0.04565,93341.0,93340.0,0.40572266]
[1763492308163,9.395e-05,93341.0,93340.0,0.40572266]
[1763492309367,0.12734495,93342.0,93341.0,0.04517]
[1763492309568,0.14996495,93342.0,93341.0,0.04517]
[1763492309767,0.10629495,93342.0,93341.0,0.04517]
[1763492310263,0.14996495,93342.0,93341.0,0.04517]
[1763492310472,0.15000909,93342.0,93341.0,0.04517]
[1763492310777,0.10633909,93342.0,93341.0,0.04517]
[1763492310971,0.10633909,93342.0,93341.0,0.04617]
[1763492311574,0.12738909,93342.0,93341.0,0.04617]
[1763492312173,0.10633909,93342.0,93341.0,0.1533712]
[1763492312567,0.10735236,93350.0,93349.0,0.04517]
[1763492312768,0.00016066,93350.0,93349.0,0.04517]
[1763492313264,0.1071794,93361.0,93360.0,0.05819]
[1763492313575,0.1071781,93362.0,93361.0,0.04517]
[1763492313974,0.1508481,93362.0,93361.0,0.04517]
[1763492314280,0.1282281,93362.0,93361.0,0.04517]
[1763492314468,0.02105,93362.0,93361.0,0.1523482]
[1763492314665,0.02105,93366.0,93365.0,0.1071736]
[1763492314873,0.1508412,93368.0,93367.0,0.1523413]
[1763492315178,0.1508412,93368.0,93367.0,0.04517]
[1763492315375,0.04367,93368.0,93367.0,0.40597]
[1763492315577,0.10936593,93370.0,93369.0,0.04517]
[1763492315969,0.15303593,93370.0,93369.0,0.04517]
[1763492316473,0.10936593,93370.0,93369.0,0.04517]
[1763492316770,0.15303593,93370.0,93369.0,0.04517]
[1763492319464,0.13041593,93370.0,93369.0,0.04517]
[1763492320175,0.15303593,93370.0,93369.0,0.04517]
[1763492326174,0.04586803,93370.0,93369.0,0.04517]
[1763492326379,0.10732856,93371.0,93370.0,0.15307056]
[1763492326681,0.15099856,93371.0,93370.0,0.15307056]
[1763492326872,0.04216876,93371.0,93370.0,0.15307056]
[1763492327476,0.01954876,93371.0,93370.0,0.15307056]
[1763492328379,0.04216876,93371.0,93370.0,0.15307056]
[1763492328975,0.01954876,93371.0,93370.0,0.15307056]
[1763492329179,0.1508316,93376.0,93375.0,0.1523275]
[1763492329364,0.1508316,93376.0,93375.0,0.5131275]
[1763492329770,0.04367,93376.0,93375.0,0.5131275]
[1763492330979,0.04367,93376.0,93375.0,0.40597]
[1763492333374,0.04367,93376.0,93375.0,0.38396]
[1763492333680,0.04367,93376.0,93375.0,0.3608]
[1763492333980,0.04367,93376.0,93375.0,0.40597]
[1763492336575,0.01546869,93380.0,93361.0,0.16387]
[1763492336576,0.1508471,93362.0,93361.0,0.16387]
[1763492336880,0.1508471,93362.0,93361.0,0.1187]
[1763492339376,0.1518471,93362.0,93361.0,0.1187]
[1763492339573,0.1528471,93362.0,93361.0,0.1187]
[1763492340373,0.1528471,93362.0,93361.0,0.16489]
[1763492340578,0.1528471,93362.0,93361.0,0.1187]
[1763492340978,0.1528471,93362.0,93361.0,0.16403]
[1763492341479,0.04567,93362.0,93361.0,0.16403]
[1763492341686,0.04837,93362.0,93361.0,0.16403]
[1763492341981,0.04837,93362.0,93361.0,0.04533]
[1763492342883,0.04737,93362.0,93361.0,0.04533]
[1763492343186,0.04737,93362.0,93361.0,0.40613]
[1763492344096,0.04637,93362.0,93361.0,0.40613]
[1763492344391,0.02318,93366.0,93365.0,0.1525036]
[1763492344574,0.15573623,93370.0,93361.0,0.3608]
[1763492344888,0.1545471,93362.0,93361.0,0.5133082]
[1763492345286,0.1545471,93362.0,93361.0,0.40613]
[1763492346082,0.1555471,93362.0,93361.0,0.40613]
[1763492346588,0.1545471,93362.0,93361.0,0.40613]
[1763492346786,0.1535471,93362.0,93361.0,0.40613]
[1763492353900,0.153547,93362.0,93361.0,0.5133082]
[1763492354397,0.153547,93362.0,93361.0,0.40613]
[1763492354793,0.153547,93362.0,93361.0,0.5133082]
[1763492355594,0.04637,93362.0,93361.0,0.5133082]
[1763492355894,0.1071625,93375.0,93361.0,0.5133082]
[1763492355895,0.04637,93377.0,93368.0,0.1071674]
[1763492356096,0.1535383,93370.0,93369.0,0.04533]
[1763492356598,0.15573633,93370.0,93369.0,0.04533]
[1763492359595,0.1535448,93364.0,93363.0,0.04533]
[1763492359801,0.04637,93362.0,93360.0,0.00073266]
[1763492359997,0.04637,93362.0,93361.0,0.40613]
[1763492360904,0.1303025,93366.0,93365.0,0.04546]
[1763492361102,0.1528425,93366.0,93365.0,0.04546]
[1763492364911,0.1071722,93367.0,93366.0,0.1659225]
[1763492365294,0.02532803,93370.0,93369.0,0.152629]
[1763492365499,0.05052643,93370.0,93369.0,0.513429]
[1763492366803,0.07306643,93370.0,93369.0,0.513429]
[1763492367110,0.05052643,93370.0,93369.0,0.513429]
[1763492368111,0.07306643,93370.0,93369.0,0.513429]
[1763492368410,0.07306643,93370.0,93369.0,0.40626]
[1763492370600,0.07306643,93370.0,93369.0,0.513429]
[1763492371007,0.07306643,93370.0,93369.0,0.40626]
[1763492374615,0.05052643,93370.0,93369.0,0.40626]
[1763492375012,0.0251984,93370.0,93369.0,0.40626]
[1763492375510,0.04529066,93380.0,93379.0,0.04463]
[1763492375814,0.04529066,93380.0,93379.0,0.40543]
[1763492375815,0.04748869,93380.0,93379.0,0.40543]
[1763492384419,0.04748869,93380.0,93379.0,0.5125875]
[1763492387012,0.04748869,93380.0,93379.0,0.40543]
[1763492388417,0.02505869,93380.0,93379.0,0.40543]
[1763492388613,0.04748869,93380.0,93379.0,0.40543]
[1763492391614,0.0724401,93380.0,93379.0,0.38365]
[1763492391819,0.0724401,93380.0,93379.0,0.40543]
[1763492393123,0.02505869,93380.0,93379.0,0.40543]
[1763492393320,0.04748869,93380.0,93379.0,0.40543]
[1763492393926,0.04748869,93380.0,93379.0,0.5125875]
[1763492396630,0.04748869,93380.0,93379.0,0.40543]
[1763492400323,0.00016066,93380.0,93379.0,0.40543]
[1763492400824,0.1071313,93402.0,93401.0,0.04452]
[1763492401024,0.17808323,93402.0,93401.0,0.04452]
[1763492401421,0.04598,93401.0,93400.0,0.00073266]
[1763492401621,0.04598,93381.0,93380.0,0.04452]
[1763492401826,0.1531352,93381.0,93380.0,0.04525266]
[1763492402327,0.1612856,93372.0,93371.0,0.04468066]
[1763492402719,0.18624913,93372.0,93371.0,0.04468066]
[1763492404026,0.18624913,93372.0,93371.0,0.00016066]
[1763492404630,0.18624913,93372.0,93371.0,0.04468066]
[1763492406133,0.18624913,93372.0,93371.0,0.02301066]
[1763492406523,0.18624913,93372.0,93371.0,0.00016066]
[1763492406921,0.1531651,93355.0,93354.0,0.04452]
[1763492407131,0.04598,93355.0,93354.0,0.04452]
[1763492408132,0.04598,93355.0,93354.0,0.04552]
[1763492408334,0.02307,93355.0,93354.0,0.04552]
[1763492408832,0.04598,93355.0,93354.0,0.04652]
[1763492409033,0.04614066,93364.0,93363.0,0.04452]
[1763492409734,0.00016066,93364.0,93363.0,0.04452]
[1763492410232,0.02323066,93364.0,93363.0,0.04452]
[1763492410434,0.04598,93361.0,93360.0,0.02358266]
[1763492410732,0.04598,93361.0,93360.0,0.04525266]
[1763492411130,0.00016066,93364.0,93363.0,0.04452]
[1763492411733,0.1302339,93374.0,93373.0,0.05254]
[1763492411934,0.15518011,93374.0,93373.0,0.05254]
[1763492412133,0.17809011,93374.0,93373.0,0.05254]
[1763492412327,0.1531467,93371.0,93370.0,0.00073266]
[1763492412528,0.1531582,93361.0,93360.0,0.04452]
[1763492412734,0.1531582,93361.0,93360.0,0.04625266]
[1763492413436,0.1531582,93361.0,93360.0,0.04525266]
[1763492414033,0.1531582,93361.0,93360.0,0.02358266]
[1763492414234,0.1531582,93361.0,93360.0,0.04625266]
[1763492415433,0.1531582,93361.0,93360.0,0.02558266]
[1763492415830,0.1531582,93361.0,93360.0,0.04725266]
[1763492416244,0.1531582,93361.0,93360.0,0.02558266]
[1763492416538,0.17822701,93361.0,93360.0,0.002]
[1763492416837,0.43682701,93361.0,93360.0,0.002]
[1763492418331,0.43682701,93361.0,93360.0,0.04725266]
[1763492418528,0.43682701,93361.0,93360.0,0.02558266]
[1763492418833,0.43682701,93361.0,93360.0,0.00073266]
[1763492419035,0.43682701,93361.0,93360.0,0.04525266]
[1763492419431,0.43682701,93361.0,93360.0,0.00073266]
[1763492419828,0.1668685,93352.0,93351.0,0.38381066]
[1763492420926,0.1668685,93352.0,93351.0,0.04468066]
[1763492421132,0.1668685,93352.0,93351.0,0.00016066]
[1763492421340,0.04583,93332.0,93331.0,0.41878]
[1763492421540,0.1530415,93332.0,93331.0,0.41878]
[1763492421731,0.1062115,93332.0,93331.0,0.41878]
[1763492422132,0.1052115,93332.0,93331.0,0.41878]
[1763492422334,0.1530387,93335.0,93334.0,0.04476]
[1763492423743,0.1072087,93335.0,93334.0,0.04476]
[1763492424039,0.00016066,93344.0,93334.0,0.04476]
[1763492424040,0.04599066,93344.0,93343.0,0.04476]
[1763492425543,0.02303066,93344.0,93343.0,0.04476]
[1763492425750,0.00016066,93344.0,93343.0,0.04476]
[1763492426040,0.01070691,93364.0,93363.0,0.04476]
[1763492426041,0.14075161,93364.0,93363.0,0.04476]
[1763492426428,0.16371161,93364.0,93363.0,0.04476]
[1763492426848,0.1530047,93364.0,93363.0,0.04476]
[1763492427145,0.1498982,93361.0,93360.0,0.00073266]
[1763492427339,0.1498982,93361.0,93360.0,0.02232266]
[1763492427644,0.1498982,93361.0,93360.0,0.00073266]
[1763492428538,0.129825,93364.0,93363.0,0.04444]
[1763492428842,0.149895,93364.0,93363.0,0.04444]
[1763492429937,0.1499051,93355.0,93354.0,0.36096066]
[1763492430343,0.40352,93365.0,93364.0,0.04444]
[1763492430532,0.1498936,93365.0,93364.0,0.04444]
[1763492431335,0.04272,93365.0,93364.0,0.04444]
[1763492431536,0.02165,93371.0,93370.0,0.04444]
[1763492431736,0.00016066,93373.0,93369.0,0.04444]
[1763492431737,0.13101693,93370.0,93369.0,0.04444]
[1763492431931,0.15208693,93370.0,93369.0,0.04444]
[1763492432447,0.04491803,93370.0,93369.0,0.04444]
[1763492433039,0.02384803,93370.0,93369.0,0.04444]
[1763492433545,0.02484803,93370.0,93369.0,0.04444]
[1763492433932,0.04591803,93370.0,93369.0,0.04444]
[1763492434135,0.00319803,93370.0,93369.0,0.04444]
[1763492434849,0.02484803,93370.0,93369.0,0.04444]
[1763492435235,0.04591803,93370.0,93369.0,0.04444]
[1763492435833,0.04491803,93370.0,93369.0,0.04444]
[1763492436039,0.00219803,93370.0,93369.0,0.04444]
[1763492436746,0.04491803,93370.0,93369.0,0.04444]
[1763492436940,0.00219803,93370.0,93369.0,0.04444]
[1763492437137,0.02384803,93370.0,93369.0,0.04444]
[1763492437646,0.00219803,93370.0,93369.0,0.04444]
[1763492438641,0.00016066,93373.0,93372.0,0.04444]
[1763492438947,0.00016066,93373.0,93372.0,0.40524]
[1763492439645,0.1071265,93407.0,93372.0,0.40524]
[1763492439646,0.38245,93401.0,93400.0,0.01283]